bitfinex-derivatives/quotes_BTCF0:USTF0_20240825
["timestamp","ask_amount","ask_price","bid_price","bid_amount"]
[1724592285661,0.46836,64056.0,64055.0,0.04754599]
[1724592285968,0.46836,64056.0,64055.0,0.02]
[1724592286160,0.46836,64056.0,64055.0,0.021]
[1724592286759,0.46836,64056.0,64055.0,0.04891417]
[1724592288066,0.46836,64056.0,64055.0,0.04991417]
[1724592288267,0.46,64060.0,64055.0,0.04991417]
[1724592288675,0.46,64060.0,64055.0,0.12793317]
[1724592289371,0.46,64060.0,64055.0,0.17440436]
[1724592289568,0.46,64060.0,64057.0,0.04647119]
[1724592289768,0.46,64060.0,64059.0,0.078014]
[1724592289968,0.46,64060.0,64059.0,0.12448519]
[1724592290173,0.0462,64062.0,64059.0,0.04647119]
[1724592290373,0.0462,64062.0,64060.0,0.48532248]
[1724592290671,0.0462,64062.0,64061.0,0.04650948]
[1724592291078,0.124211,64062.0,64060.0,0.40730948]
[1724592291370,0.4596,64061.0,64060.0,0.40730948]
[1724592291578,0.4596,64061.0,64060.0,0.40830948]
[1724592292165,0.4596,64061.0,64060.0,0.48532248]
[1724592292773,0.4596,64061.0,64060.0,0.439813]
[1724592292974,0.4596,64061.0,64060.0,0.440813]
[1724592293291,0.4596,64061.0,64060.0,0.49732248]
[1724592294177,0.4596,64061.0,64060.0,0.450813]
[1724592294365,0.53742865,64061.0,64060.0,0.450813]
[1724592294566,0.53742867,64061.0,64060.0,0.450813]
[1724592295074,0.4596,64061.0,64060.0,0.450813]
[1724592296176,0.48489274,64061.0,64060.0,0.450813]
[1724592297774,0.02529274,64061.0,64060.0,0.450813]
[1724592297973,0.0004,64062.0,64061.0,0.078012]
[1724592298173,0.0256927,64062.0,64061.0,0.188012]
[1724592298774,0.0256927,64062.0,64061.0,0.188412]
[1724592298976,0.07822032,64062.0,64061.0,0.188412]
[1724592299475,0.0004,64062.0,64061.0,0.189412]
[1724592299681,0.0004,64062.0,64061.0,0.190412]
[1724592300379,0.0004,64062.0,64061.0,0.1124]
[1724592300582,0.15623132,64062.0,64061.0,0.1124]
[1724592300876,0.10370448,64062.0,64061.0,0.1124]
[1724592301078,0.56370448,64062.0,64061.0,0.1124]
[1724592301385,0.07802,64054.0,64053.0,0.04649156]
[1724592301685,0.07802,64054.0,64053.0,0.12789114]
[1724592302074,0.53842,64054.0,64053.0,0.12789114]
[1724592302487,1.00678,64054.0,64053.0,0.1]
[1724592302683,1.00678,64054.0,64048.0,0.07508703]
[1724592302684,0.8212,64054.0,64048.0,0.07508703]
[1724592302979,0.8212,64054.0,64043.0,0.078033]
[1724592302980,0.078028,64048.0,64047.0,0.04649622]
[1724592303187,0.078028,64048.0,64047.0,0.05]
[1724592303679,0.078428,64048.0,64047.0,0.05]
[1724592304079,0.078031,64046.0,64044.0,0.04649622]
[1724592304280,0.078031,64046.0,64044.0,0.01]
[1724592304878,0.078031,64046.0,64045.0,0.04609622]
[1724592305178,0.078031,64046.0,64045.0,0.05609622]
[1724592305773,0.079031,64046.0,64045.0,0.05609622]
[1724592306174,0.947431,64046.0,64044.0,0.001]
[1724592306377,0.53069229,64045.0,64041.0,0.00023423]
[1724592306581,0.53071746,64045.0,64041.0,0.00023423]
[1724592306783,0.99071746,64044.0,64041.0,0.00023423]
[1724592307182,0.62511746,64043.0,64041.0,0.00023423]
[1724592307384,0.078035,64042.0,64041.0,0.00023423]
[1724592307593,0.62451,64042.0,64041.0,0.00023423]
[1724592307883,1.02451,64042.0,64041.0,0.00023423]
[1724592308087,1.02451,64042.0,64032.0,0.00015326]
[1724592308088,0.078046,64033.0,64032.0,0.00015326]
[1724592308291,0.078046,64033.0,64032.0,0.02688573]
[1724592308482,0.546566,64033.0,64032.0,0.00015326]
[1724592309086,0.946566,64033.0,64032.0,0.00015326]
[1724592311081,1.406566,64033.0,64032.0,0.00015326]
[1724592311277,0.078053,64027.0,64026.0,0.00023423]
[1724592311587,0.478053,64027.0,64026.0,0.00023423]
[1724592311785,0.546613,64027.0,64026.0,0.00023423]
[1724592312086,1.006613,64027.0,64026.0,0.00023423]
[1724592312281,1.40676696,64027.0,64026.0,0.00023423]
[1724592312983,1.40676696,64027.0,64026.0,0.00323423]
[1724592313781,1.00676696,64027.0,64026.0,0.00323423]
[1724592313982,1.00676696,64027.0,64026.0,0.00723423]
[1724592316487,0.07820696,64027.0,64026.0,0.00723423]
[1724592316882,0.53820696,64027.0,64026.0,0.00723423]
[1724592318788,1.00676696,64027.0,64026.0,0.00723423]
[1724592319585,0.53820696,64027.0,64026.0,0.00723423]
[1724592329088,0.53820696,64027.0,64026.0,1.50723423]
[1724592330390,0.53820696,64027.0,64026.0,1.51723423]
[1724592332691,0.53860696,64027.0,64026.0,1.51723423]
[1724592333601,0.53860696,64027.0,64026.0,1.59528823]
[1724592334296,0.53860696,64027.0,64026.0,1.62088316]
[1724592335599,0.46055396,64027.0,64026.0,1.62088316]
[1724592337298,0.46055396,64027.0,64026.0,1.68284475]
[1724592338092,0.46055396,64027.0,64026.0,1.62088316]
[1724592343707,0.46055396,64027.0,64026.0,1.98168316]
[1724592347409,0.06226969,64033.0,64026.0,2.10001664]
[1724592347600,0.06226969,64036.0,64032.0,0.42297091]
[1724592347796,0.46,64035.0,64034.0,0.078045]
[1724592348000,0.46,64035.0,64034.0,0.128045]
[1724592349199,0.06226969,64037.0,64034.0,0.05]
[1724592349510,0.06226969,64042.0,64034.0,0.05]
[1724592349711,0.045,64044.0,64038.0,0.06213376]
[1724592349712,0.06226969,64043.0,64038.0,0.06213376]
[1724592349901,0.06226969,64043.0,64038.0,0.07213376]
[1724592350301,0.46023423,64039.0,64038.0,0.07250514]
[1724592350503,0.46023423,64039.0,64038.0,0.15054514]
[1724592351311,0.46023423,64039.0,64038.0,0.08944]
[1724592351905,0.00023423,64039.0,64038.0,0.13774]
[1724592352099,0.00023423,64039.0,64038.0,0.19984514]
[1724592352299,0.06226969,64048.0,64038.0,0.57758]
[1724592352300,0.04677492,64044.0,64038.0,0.57758]
[1724592352499,0.06226969,64048.0,64043.0,0.4228532]
[1724592352500,0.04677492,64048.0,64043.0,0.4228532]
[1724592352698,0.04677492,64049.0,64048.0,0.078028]
[1724592352911,0.46,64050.0,64049.0,0.078026]
[1724592353206,0.04671745,64056.0,64049.0,0.0720532]
[1724592353414,0.04671745,64058.0,64057.0,0.078017]
[1724592353602,0.04671745,64058.0,64055.0,0.3608]
[1724592353603,0.46,64058.0,64055.0,0.3608]
[1724592353813,0.46,64058.0,64055.0,0.3808]
[1724592354906,0.46,64058.0,64057.0,0.078017]
[1724592355214,0.46,64058.0,64057.0,0.079017]
[1724592356802,0.10945325,64099.0,64079.0,0.07799]
[1724592357010,0.04656701,64099.0,64098.0,0.438766]
[1724592357202,0.04656327,64105.0,64100.0,0.077964]
[1724592357402,0.3608,64111.0,64104.0,0.3608]
[1724592357403,0.04656327,64110.0,64104.0,0.3608]
[1724592357606,0.40736327,64111.0,64104.0,0.3608]
[1724592357815,0.3608,64111.0,64104.0,0.3608]
[1724592358111,0.02607026,64113.0,64110.0,0.3608]
[1724592358112,0.07263353,64113.0,64110.0,0.3608]
[1724592358313,0.02671559,64115.0,64110.0,0.3608]
[1724592358511,0.3608,64117.0,64110.0,0.3608]
[1724592358716,0.38655192,64117.0,64110.0,0.3608]
[1724592359305,0.3608,64117.0,64110.0,0.3608]
[1724592359506,0.3608,64117.0,64116.0,0.0004]
[1724592359713,1.22868,64117.0,64110.0,0.001]
[1724592359909,0.3608,64111.0,64110.0,0.001]
[1724592360308,1.32356,64111.0,64104.0,0.001]
[1724592360514,0.46796,64110.0,64101.0,0.00023403]
[1724592360814,0.4556,64111.0,64101.0,0.00023403]
[1724592361012,0.4556,64111.0,64091.0,0.3608]
[1724592361013,0.3608,64102.0,64091.0,0.3608]
[1724592361315,0.3608,64102.0,64093.0,0.3608]
[1724592361316,0.0474,64101.0,64093.0,0.3608]
[1724592362118,0.125364,64101.0,64093.0,0.3608]
[1724592363913,0.125364,64101.0,64093.0,0.3618]
[1724592364420,0.126364,64101.0,64093.0,0.3618]
[1724592364619,0.077965,64100.0,64093.0,0.3618]
[1724592365612,0.077966,64099.0,64093.0,0.3618]
[1724592365807,0.077969,64097.0,64093.0,0.3618]
[1724592366015,0.07797,64096.0,64093.0,0.3618]
[1724592367705,0.077971,64095.0,64093.0,0.3618]
[1724592369212,0.078971,64095.0,64093.0,0.3608]
[1724592369522,0.078971,64095.0,64093.0,0.3618]
[1724592369915,0.078971,64095.0,64093.0,0.3718]
[1724592370420,0.078971,64095.0,64093.0,0.3618]
[1724592370811,0.156942,64095.0,64093.0,0.001]
[1724592371025,0.56148,64094.0,64093.0,0.001]
[1724592371523,0.46808,64093.0,64078.0,0.438791]
[1724592371818,0.571372,64094.0,64078.0,0.468791]
[1724592371819,0.077987,64081.0,64078.0,0.468791]
[1724592372213,0.0004,64079.0,64078.0,0.3908]
[1724592373111,0.0004,64079.0,64078.0,0.3988]
[1724592373513,0.0004,64079.0,64078.0,0.476791]
[1724592373721,0.0004,64079.0,64078.0,0.468791]
[1724592374219,0.0004,64079.0,64078.0,0.477791]
[1724592375023,0.0004,64079.0,64078.0,0.468791]
[1724592375316,0.0004,64079.0,64078.0,0.471791]
[1724592375519,0.0014,64079.0,64078.0,0.471791]
[1724592375715,0.0014,64079.0,64078.0,0.49228691]
[1724592376021,0.0004,64079.0,64078.0,0.49628691]
[1724592376215,0.00023403,64085.0,64084.0,0.077984]
[1724592376417,0.077976,64091.0,64084.0,0.4608]
[1724592376624,0.3608,64106.0,64090.0,0.3608]
[1724592376814,0.077964,64101.0,64097.0,0.3608]
[1724592377010,0.077964,64101.0,64097.0,0.3908]
[1724592377517,0.077964,64100.0,64097.0,0.3908]
[1724592379625,0.077964,64100.0,64097.0,0.3918]
[1724592379626,0.078964,64100.0,64097.0,0.3918]
[1724592380223,0.079964,64100.0,64097.0,0.3928]
[1724592383325,0.079964,64100.0,64097.0,0.3628]
[1724592384128,0.079964,64100.0,64097.0,0.440768]
[1724592384432,0.079964,64100.0,64098.0,0.077967]
[1724592384631,0.079964,64100.0,64098.0,0.087967]
[1724592384828,0.079964,64100.0,64099.0,0.077966]
[1724592385129,0.002,64100.0,64099.0,0.087966]
[1724592385321,0.04857343,64100.0,64099.0,0.087966]
[1724592385525,0.002,64100.0,64099.0,0.087966]
[1724592386133,0.002,64100.0,64099.0,0.135066]
[1724592386331,0.04857343,64100.0,64099.0,0.135066]
[1724592386522,0.04857343,64100.0,64099.0,0.136066]
[1724592386932,0.002,64100.0,64099.0,0.136066]
[1724592387231,0.002,64100.0,64099.0,0.137066]
[1724592387732,0.002,64100.0,64099.0,0.497866]
[1724592388131,0.002,64100.0,64099.0,0.51870543]
[1724592389727,0.04857343,64100.0,64099.0,0.51870543]
[1724592389930,0.002,64100.0,64099.0,0.51870543]
[1724592390631,0.002,64100.0,64099.0,0.497866]
[1724592390837,0.002,64100.0,64099.0,0.450766]
[1724592391427,0.002,64100.0,64099.0,0.5128192]
[1724592394629,0.0944,64115.0,64099.0,0.5128192]
[1724592394630,0.04666151,64111.0,64109.0,0.077953]
[1724592394851,0.0004,64117.0,64110.0,0.89287748]
[1724592395025,0.0004,64117.0,64116.0,0.3608]
[1724592395026,0.078344,64117.0,64116.0,0.3608]
[1724592395730,0.078344,64117.0,64116.0,0.3612]
[1724592396839,0.078344,64117.0,64116.0,0.3622]
[1724592397041,0.079344,64117.0,64116.0,0.3632]
[1724592400251,0.0014,64117.0,64116.0,0.3632]
[1724592400545,0.0014,64117.0,64116.0,0.441145]
[1724592400847,0.0014,64117.0,64116.0,0.451145]
[1724592401845,0.04797571,64117.0,64116.0,0.451145]
[1724592402146,0.04697571,64117.0,64116.0,0.451145]
[1724592402443,0.0004,64117.0,64116.0,0.451145]
[1724592403044,0.078344,64117.0,64116.0,0.0024]
[1724592403849,0.0004,64117.0,64116.0,0.0024]
[1724592405148,0.0004,64117.0,64116.0,0.0124]
[1724592405444,0.0004,64117.0,64116.0,0.451145]
[1724592408750,0.20290891,64117.0,64116.0,0.3632]
[1724592408952,0.078344,64117.0,64116.0,0.0024]
[1724592409649,0.156288,64117.0,64116.0,0.0024]
[1724592410155,0.078344,64117.0,64116.0,0.0024]
[1724592410546,0.156288,64117.0,64116.0,0.0024]
[1724592410849,0.624168,64117.0,64116.0,0.0024]
[1724592412564,0.156288,64117.0,64116.0,0.0024]
[1724592417245,0.077951,64111.0,64110.0,0.00023403]
[1724592417451,0.077962,64102.0,64099.0,0.06180118]
[1724592417749,0.12464166,64102.0,64101.0,0.3708]
[1724592417950,0.077962,64102.0,64101.0,0.3708]
[1724592418154,0.078362,64102.0,64101.0,0.3708]
[1724592418355,0.078362,64102.0,64096.0,1.50092]
[1724592418553,0.077968,64097.0,64096.0,1.51]
[1724592419262,0.078368,64097.0,64096.0,1.51]
[1724592419858,0.127568,64097.0,64096.0,1.51]
[1724592420170,0.17425021,64097.0,64096.0,1.51]
[1724592421054,0.127568,64097.0,64096.0,1.51]
[1724592421259,0.566336,64097.0,64096.0,1.5]
[1724592421467,0.488368,64097.0,64096.0,1.5]
[1724592421651,0.489368,64097.0,64096.0,1.5]
[1724592421963,0.5515678,64097.0,64096.0,1.5]
[1724592422355,1.0196078,64097.0,64096.0,1.5]
[1724592422659,1.0196078,64097.0,64096.0,0.92423472]
[1724592422660,1.435376,64097.0,64096.0,0.92423472]
[1724592423358,1.435376,64097.0,64096.0,0.63027372]
[1724592423556,1.435376,64097.0,64096.0,0.54957272]
[1724592423948,1.435376,64097.0,64095.0,0.00023403]
[1724592424159,0.82884,64096.0,64072.0,0.3608]
[1724592424458,0.077997,64073.0,64072.0,0.3608]
[1724592424652,0.077997,64073.0,64066.0,0.438806]
[1724592424854,0.077997,64073.0,64066.0,0.448806]
[1724592425156,0.00023403,64076.0,64066.0,0.448806]
[1724592425362,0.0004,64067.0,64066.0,0.448806]
[1724592426675,0.00023403,64076.0,64066.0,1.23908]
[1724592426863,0.00023403,64076.0,64075.0,0.438795]
[1724592427558,0.00023403,64076.0,64075.0,0.3612]
[1724592427760,0.00023403,64076.0,64075.0,0.0004]
[1724592428749,0.00023403,64076.0,64075.0,0.0044]
[1724592429858,0.00023403,64076.0,64075.0,0.146695]
[1724592430759,0.04661028,64098.0,64081.0,0.077987]
[1724592431063,0.0776838,64107.0,64081.0,0.077987]
[1724592431064,0.09471028,64110.0,64099.0,0.077965]
[1724592431260,0.077961,64103.0,64100.0,0.3608]
[1724592432557,0.080961,64103.0,64100.0,0.3618]
[1724592433160,0.082961,64103.0,64100.0,0.3628]
[1724592436664,0.06214704,64102.0,64100.0,0.3628]
[1724592437266,0.077963,64101.0,64100.0,0.3628]
[1724592437669,0.97124383,64101.0,64100.0,0.00136597]
[1724592437861,0.97124383,64101.0,64100.0,0.00036597]
[1724592438062,0.97124383,64101.0,64095.0,0.00023403]
[1724592438063,0.077969,64096.0,64095.0,0.00023403]
[1724592438262,0.51627372,64096.0,64095.0,0.00023403]
[1724592438460,0.46405227,64096.0,64095.0,0.00023403]
[1724592438865,0.46445227,64096.0,64095.0,0.00023403]
[1724592439475,0.46745227,64096.0,64095.0,0.00123403]
[1724592440764,0.15892183,64096.0,64095.0,0.00123403]
[1724592440961,0.15792183,64096.0,64095.0,0.00123403]
[1724592441163,0.083369,64096.0,64095.0,0.00223403]
[1724592441673,0.15792183,64096.0,64095.0,0.00123403]
[1724592441868,0.16192183,64096.0,64095.0,0.00223403]
[1724592442577,0.084369,64096.0,64095.0,0.00223403]
[1724592443570,0.10965073,64096.0,64095.0,0.00223403]
[1724592444369,0.10965075,64096.0,64095.0,1.50223403]
[1724592444763,0.084369,64096.0,64095.0,1.50223403]
[1724592445771,0.445169,64096.0,64095.0,1.50223403]
[1724592447076,0.084369,64096.0,64095.0,1.50223403]
[1724592447276,0.445169,64096.0,64095.0,1.50223403]
[1724592449577,0.13094184,64096.0,64095.0,1.50223403]
[1724592449763,0.084369,64096.0,64095.0,1.50223403]
[1724592450567,0.084369,64096.0,64095.0,1.51223403]
[1724592451569,0.082369,64096.0,64095.0,1.51123403]
[1724592451776,0.084369,64096.0,64095.0,1.51223403]
[1724592452374,0.084369,64096.0,64095.0,1.50223403]
[1724592452667,0.083369,64096.0,64095.0,1.50223403]
[1724592454572,0.12994184,64096.0,64095.0,1.50223403]
[1724592454778,0.083369,64096.0,64095.0,1.50223403]
[1724592455577,0.12994184,64096.0,64095.0,1.58020403]
[1724592455777,0.083369,64096.0,64095.0,1.58020403]
[1724592458477,0.12994184,64096.0,64095.0,1.58020403]
[1724592458779,0.10864907,64096.0,64095.0,1.58020403]
[1724592459573,0.13876738,64096.0,64095.0,1.58020403]
[1724592460575,0.13876782,64096.0,64095.0,1.58020403]
[1724592463175,0.06079882,64096.0,64095.0,1.60020403]
[1724592463371,0.03068007,64096.0,64095.0,1.60020403]
[1724592463570,0.03067795,64096.0,64095.0,1.60020403]
[1724592463973,0.12416854,64096.0,64095.0,1.60020403]
[1724592464178,0.03067795,64096.0,64095.0,1.60020403]
[1724592465078,0.03067795,64096.0,64095.0,1.6214621]
[1724592465475,0.03267795,64096.0,64095.0,1.6214621]
[1724592466180,0.03067795,64096.0,64095.0,1.6204621]
[1724592466583,0.02967795,64096.0,64095.0,2.0875021]
[1724592466780,0.0044,64096.0,64095.0,2.0875021]
[1724592466977,0.0044,64096.0,64095.0,2.2289021]
[1724592467481,0.04672386,64100.0,64099.0,0.077966]
[1724592467779,0.04672386,64101.0,64100.0,0.077964]
[1724592467981,0.04672386,64102.0,64101.0,0.077963]
[1724592468194,0.04672386,64102.0,64101.0,0.23993705]
[1724592468776,0.06229848,64107.0,64102.0,0.077962]
[1724592468777,0.04672386,64103.0,64102.0,0.077962]
[1724592468979,0.04672386,64103.0,64102.0,0.187962]
[1724592469178,0.04672386,64103.0,64102.0,0.548762]
[1724592469385,0.04670392,64106.0,64102.0,0.4708]
[1724592469680,0.00023403,64108.0,64107.0,0.077956]
[1724592469874,0.00023403,64108.0,64107.0,0.12440638]
[1724592470475,0.00023403,64108.0,64107.0,0.12480672]
[1724592470677,0.00023403,64108.0,64107.0,0.078356]
[1724592470876,0.00023403,64108.0,64107.0,0.12480672]
[1724592471080,0.04693795,64108.0,64107.0,0.078356]
[1724592471680,0.00023403,64108.0,64107.0,0.079356]
[1724592471988,0.04693795,64108.0,64107.0,0.080356]
[1724592472287,0.04693795,64108.0,64107.0,0.0024]
[1724592472485,0.00023403,64108.0,64107.0,0.0024]
[1724592473306,0.06253251,64108.0,64107.0,0.0024]
[1724592473674,0.05562636,64108.0,64107.0,0.0024]
[1724592473879,0.13358136,64108.0,64107.0,0.0024]
[1724592476683,0.10346631,64108.0,64107.0,0.0024]
[1724592477486,0.10346519,64108.0,64107.0,0.0024]
[1724592479983,0.13357855,64108.0,64107.0,0.0124]
[1724592480505,0.05562355,64108.0,64107.0,0.090356]
[1724592480691,0.02551019,64108.0,64107.0,0.090356]
[1724592481679,0.00023403,64108.0,64107.0,0.090356]
[1724592481883,0.04691601,64108.0,64107.0,0.090356]
[1724592482088,0.04691601,64108.0,64107.0,0.13679862]
[1724592482089,0.00023403,64108.0,64107.0,0.13679862]
[1724592482891,0.00023403,64108.0,64107.0,0.558316]
[1724592483287,0.00023403,64108.0,64107.0,0.648916]
[1724592486593,0.00023403,64108.0,64107.0,0.180956]
[1724592489193,0.06246664,64108.0,64107.0,0.180956]
[1724592489390,0.00023403,64108.0,64107.0,0.180956]
[1724592490202,0.00023403,64108.0,64107.0,0.090356]
[1724592496602,0.00023403,64108.0,64107.0,0.451156]
[1724592504406,0.04671662,64110.0,64109.0,0.077953]
[1724592504604,0.04671662,64110.0,64109.0,0.655913]
[1724592505307,0.06228883,64113.0,64112.0,0.07795]
[1724592505508,0.0004,64117.0,64116.0,0.077945]
[1724592505698,0.0004,64117.0,64116.0,0.498745]
[1724592506208,0.0004,64117.0,64116.0,0.499145]
[1724592507907,0.0004,64117.0,64116.0,0.520342]
[1724592508110,0.0014,64117.0,64116.0,0.521342]
[1724592508411,0.0024,64117.0,64116.0,0.522342]
[1724592517014,0.080344,64117.0,64116.0,0.3632]
[1724592519212,0.080344,64117.0,64116.0,0.40970717]
[1724592519513,0.080344,64117.0,64116.0,0.3632]
[1724592519713,0.080344,64117.0,64116.0,0.40970717]
[1724592519912,0.080344,64117.0,64116.0,0.3632]
[1724592520108,0.080344,64117.0,64116.0,0.40970717]
[1724592520413,0.080344,64117.0,64116.0,0.3632]
[1724592521204,0.14268406,64117.0,64116.0,0.461145]
[1724592521404,0.14268406,64117.0,64116.0,0.52315331]
[1724592521618,0.14268406,64117.0,64116.0,0.461145]
[1724592521805,0.078944,64117.0,64116.0,0.461145]
[1724592522006,0.0966,64118.0,64116.0,0.461145]
[1724592522007,0.076944,64118.0,64116.0,0.461145]
[1724592522312,0.154886,64118.0,64116.0,0.441145]
[1724592522813,0.077944,64117.0,64116.0,0.4876587]
[1724592523010,0.077944,64117.0,64116.0,0.441145]
[1724592523210,0.077944,64117.0,64116.0,0.440145]
[1724592523409,0.077944,64117.0,64116.0,0.441145]
[1724592524013,0.078944,64117.0,64116.0,0.441145]
[1724592524324,0.078944,64117.0,64116.0,0.48766809]
[1724592525716,0.078944,64117.0,64116.0,0.487669]
[1724592525907,0.078944,64117.0,64116.0,0.451145]
[1724592526108,0.078944,64117.0,64116.0,0.441145]
[1724592526916,0.02627132,64117.0,64116.0,0.451145]
[1724592527811,0.09453521,64117.0,64116.0,0.451145]
[1724592528011,0.11980653,64117.0,64116.0,0.451145]
[1724592528713,0.02627132,64117.0,64116.0,0.451145]
[1724592530211,0.11980653,64117.0,64116.0,0.441145]
[1724592530411,0.11980653,64117.0,64116.0,0.451145]
[1724592530914,0.02627132,64117.0,64116.0,0.451145]
[1724592531120,0.11980601,64117.0,64116.0,0.451145]
[1724592531815,0.11535783,64125.0,64116.0,0.39269744]
[1724592531816,0.09353469,64125.0,64116.0,0.39269744]
[1724592532013,0.09353469,64123.0,64117.0,0.01949744]
[1724592532222,0.02526924,64124.0,64122.0,0.3608]
[1724592532223,0.09353469,64124.0,64122.0,0.3608]
[1724592532422,0.09353469,64125.0,64124.0,0.077935]
[1724592532625,0.02526864,64125.0,64124.0,0.077935]
[1724592533110,0.02526864,64125.0,64124.0,0.078335]
[1724592533315,0.10320264,64125.0,64124.0,0.0004]
[1724592533512,0.02526864,64125.0,64124.0,0.0104]
[1724592533711,0.02526864,64125.0,64124.0,0.088335]
[1724592534724,0.02526864,64125.0,64124.0,0.089335]
[1724592535120,0.06229433,64125.0,64124.0,0.089335]
[1724592535314,0.06229433,64125.0,64124.0,0.090335]
[1724592535920,0.07787989,64130.0,64124.0,0.090335]
[1724592535921,0.06229202,64130.0,64129.0,0.077929]
[1724592536123,0.06229202,64133.0,64130.0,0.077928]
[1724592536418,0.06229202,64133.0,64131.0,0.077926]
[1724592536916,0.06229202,64133.0,64132.0,0.0004]
[1724592536917,0.14021602,64133.0,64132.0,0.0004]
[1724592537220,0.077924,64133.0,64132.0,0.0004]
[1724592538423,0.06229202,64135.0,64134.0,0.077923]
[1724592539113,0.06229202,64135.0,64134.0,0.078323]
[1724592540322,0.14021302,64136.0,64134.0,0.079323]
[1724592540622,0.06229202,64135.0,64134.0,0.079323]
[1724592541023,0.14021302,64136.0,64134.0,0.080323]
[1724592541918,0.14021302,64136.0,64135.0,0.0004]
[1724592542119,0.10318675,64136.0,64135.0,0.0004]
[1724592543416,0.10318675,64136.0,64135.0,0.0014]
[1724592543823,0.10318675,64136.0,64135.0,1.5014]
[1724592544517,0.10318675,64136.0,64135.0,1.5024]
[1724592545224,1.04886775,64136.0,64135.0,1.2124]
[1724592545521,0.64886775,64136.0,64135.0,1.11920032]
[1724592546520,0.64966775,64136.0,64135.0,1.11920032]
[1724592546726,0.18190775,64136.0,64135.0,1.11920032]
[1724592546920,0.10398675,64136.0,64135.0,1.11920032]
[1724592550020,0.078721,64136.0,64135.0,1.11920032]
[1724592552120,0.04662857,64141.0,64135.0,1.58000032]
[1724592552319,0.06217173,64144.0,64140.0,0.3608]
[1724592552520,0.04662385,64147.0,64144.0,0.077911]
[1724592552719,0.06217004,64151.0,64144.0,0.077911]
[1724592552720,0.04660561,64151.0,64144.0,0.07]
[1724592552923,0.07771467,64160.0,64152.0,0.077901]
[1724592552924,0.04660561,64158.0,64152.0,0.077901]
[1724592553218,0.12449861,64159.0,64157.0,0.3608]
[1724592553424,0.077893,64159.0,64157.0,0.3608]
[1724592554119,0.04660561,64160.0,64157.0,0.3608]
[1724592554320,0.077893,64159.0,64157.0,0.3608]
[1724592554831,0.12449861,64159.0,64157.0,0.3618]
[1724592555015,0.04660561,64158.0,64157.0,0.3618]
[1724592555220,0.12449861,64159.0,64157.0,0.3618]
[1724592555421,0.12449861,64159.0,64157.0,0.3628]
[1724592556519,0.077893,64159.0,64157.0,0.3628]
[1724592556723,0.12449861,64159.0,64157.0,0.3628]
[1724592557123,0.05534965,64158.0,64157.0,0.3628]
[1724592558030,0.13324365,64158.0,64157.0,0.3628]
[1724592560226,0.13324365,64158.0,64157.0,0.3632]
[1724592560532,0.13324365,64158.0,64157.0,0.3622]
[1724592560825,0.13324365,64158.0,64157.0,0.3632]
[1724592561132,0.10315181,64158.0,64157.0,0.3632]
[1724592562722,0.17093001,64158.0,64157.0,0.3632]
[1724592562922,0.10315181,64158.0,64157.0,0.3632]
[1724592563124,0.67873811,64158.0,64157.0,0.0024]
[1724592563526,0.67873811,64158.0,64149.0,0.00023384]
[1724592563527,0.077903,64150.0,64149.0,0.00023384]
[1724592563724,0.57195976,64150.0,64149.0,0.00023384]
[1724592563922,0.077917,64139.0,64138.0,0.3608]
[1724592564118,0.077917,64139.0,64138.0,0.4108]
[1724592564119,0.10317481,64139.0,64138.0,0.4108]
[1724592564322,0.10317481,64139.0,64135.0,1.11900032]
[1724592564323,0.07792,64136.0,64135.0,1.11900032]
[1724592564627,0.57200158,64136.0,64135.0,1.11820032]
[1724592565024,0.516641,64136.0,64135.0,1.11820032]
[1724592565432,0.516641,64136.0,64135.0,1.11920032]
[1724592566523,0.07792,64136.0,64135.0,1.11920032]
[1724592567228,0.07992,64136.0,64135.0,1.11920032]
[1724592567431,0.07992,64136.0,64135.0,1.12020032]
[1724592567432,0.08192,64136.0,64135.0,1.12020032]
[1724592573637,0.07992,64136.0,64135.0,1.12020032]
[1724592574335,0.07892,64136.0,64135.0,1.11920032]
[1724592574532,0.07992,64136.0,64135.0,1.12020032]
[1724592574727,0.07992,64136.0,64135.0,1.11920032]
[1724592574728,0.07892,64136.0,64135.0,1.11920032]
[1724592574934,0.07992,64136.0,64135.0,1.12020032]
[1724592576538,0.07992,64136.0,64135.0,1.11920032]
[1724592576739,0.07892,64136.0,64135.0,1.11920032]
[1724592576936,0.07992,64136.0,64135.0,1.12020032]
[1724592580137,0.10518544,64136.0,64135.0,1.11920032]
[1724592580343,0.10518544,64136.0,64135.0,1.12020032]
[1724592580733,0.10518544,64136.0,64135.0,1.11920032]
[1724592580931,0.10518544,64136.0,64135.0,1.12020032]
[1724592581238,0.10418544,64136.0,64135.0,1.11920032]
[1724592581535,0.10518544,64136.0,64135.0,1.12020032]
[1724592583438,0.18310544,64136.0,64135.0,1.12020032]
[1724592583636,0.18310544,64136.0,64135.0,0.91998124]
[1724592583637,1.41166544,64136.0,64135.0,0.91998124]
[1724592583842,1.48896934,64136.0,64135.0,0.91998124]
[1724592584431,1.56688934,64136.0,64135.0,0.91998124]
[1724592584736,1.56688934,64136.0,64135.0,0.81820724]
[1724592584933,1.60505514,64136.0,64135.0,0.70288924]
[1724592585145,1.60505514,64136.0,64135.0,0.49457624]
[1724592585146,1.60506614,64136.0,64135.0,0.49457624]
[1724592585443,1.60506614,64136.0,64135.0,0.32637924]
[1724592585651,1.72928949,64136.0,64135.0,0.32637924]
[1724592585836,1.72928918,64136.0,64135.0,0.32637924]
[1724592586138,1.72929011,64136.0,64135.0,0.32637924]
[1724592586338,1.72929011,64136.0,64135.0,0.14933724]
[1724592586339,1.67559362,64136.0,64135.0,0.14933724]
[1724592586537,0.077951,64111.0,64106.0,0.0465]
[1724592586744,0.15559997,64111.0,64106.0,0.0465]
[1724592587041,0.19640502,64111.0,64106.0,0.0465]
[1724592587240,0.078351,64111.0,64106.0,0.0465]
[1724592587834,0.078351,64111.0,64110.0,0.01413144]
[1724592588037,0.078351,64111.0,64110.0,0.02813144]
[1724592589545,0.946311,64111.0,64110.0,0.02813144]
[1724592589943,1.00843365,64111.0,64110.0,0.02813144]
[1724592590446,0.946311,64111.0,64110.0,0.02813144]